[Event "*** Titled Tuesday Blitz"]
[Site "Chess.com"]
[Date "2019.03.05"]
[Round "5"]
[White "LawrenceTrent"]
[Black "Cryptochess"]
[Result "1-0"]
[WhiteElo "2532"]
[BlackElo "2533"]
[TimeControl "180+2"]
[EndTime "14:16:17 PST"]
[Termination "LawrenceTrent won by resignation"]

1. Nc3 {[%clk 0:03:01.9]} 1... e5 {[%clk 0:02:58.2]} 2. Nf3 {[%clk 0:03:02.1]}
2... Nc6 {[%clk 0:02:57.6]} 3. d4 {[%clk 0:03:03.3]} 3... exd4 {[%clk
0:02:58.6]} 4. Nxd4 {[%clk 0:03:05.2]} 4... Nf6 {[%clk 0:02:59.8]} 5. Bg5 {[%clk
0:03:05.4]} 5... Be7 {[%clk 0:02:59.7]} 6. Nf5 {[%clk 0:03:06.2]} 6... O-O
{[%clk 0:02:55]} 7. e3 {[%clk 0:02:57.5]} 7... Bb4 {[%clk 0:02:39.8]} 8. Qf3
{[%clk 0:02:47.6]} 8... d5 {[%clk 0:02:22.2]} 9. Nh6+ {[%clk 0:02:35.7]} 9...
Kh8 {[%clk 0:02:20.9]} 10. Bd3 {[%clk 0:02:23]} 10... Ne5 {[%clk 0:02:16.2]} 11.
Qf4 {[%clk 0:02:24.2]} 11... Bxc3+ {[%clk 0:01:50.9]} 12. bxc3 {[%clk
0:02:23.9]} 12... Ng6 {[%clk 0:01:52.5]} 13. Qf3 {[%clk 0:02:11]} 13... Ne5
{[%clk 0:01:41.2]} 14. Qf4 {[%clk 0:02:06.7]} 14... Ng6 {[%clk 0:01:30.9]} 15.
Bxf6 {[%clk 0:01:39.3]} 15... Qxf6 {[%clk 0:00:55.5]} 16. Qxf6 {[%clk
0:01:39.8]} 16... gxf6 {[%clk 0:00:57.2]} 17. f4 {[%clk 0:01:35]} 17... Re8
{[%clk 0:00:54.3]} 18. Kf2 {[%clk 0:01:35.7]} 18... Kg7 {[%clk 0:00:51.5]} 19.
Nf5+ {[%clk 0:01:36.3]} 19... Bxf5 {[%clk 0:00:52.5]} 20. Bxf5 {[%clk
0:01:38.2]} 20... Ne7 {[%clk 0:00:51.7]} 21. Bd3 {[%clk 0:01:37.7]} 21... Nc8
{[%clk 0:00:52.7]} 22. c4 {[%clk 0:01:37.7]} 22... dxc4 {[%clk 0:00:48.9]} 23.
Bxc4 {[%clk 0:01:38.9]} 23... Nd6 {[%clk 0:00:50.8]} 24. Bd3 {[%clk 0:01:38.6]}
24... c5 {[%clk 0:00:50.1]} 25. Rad1 {[%clk 0:01:38.7]} 25... Rad8 {[%clk
0:00:50.5]} 26. Kf3 {[%clk 0:01:35.9]} 26... c4 {[%clk 0:00:50.9]} 27. Be2
{[%clk 0:01:36.4]} 27... b5 {[%clk 0:00:51.1]} 28. Rd5 {[%clk 0:01:32]} 28... a6
{[%clk 0:00:36]} 29. Rhd1 {[%clk 0:01:18.7]} 29... Nb7 {[%clk 0:00:36]} 30. a4
{[%clk 0:01:12]} 30... Rxd5 {[%clk 0:00:34]} 31. Rxd5 {[%clk 0:01:13.9]} 31...
Rd8 {[%clk 0:00:35.6]} 32. Rxd8 {[%clk 0:01:07.8]} 32... Nxd8 {[%clk 0:00:37.5]}
33. axb5 {[%clk 0:01:09.3]} 33... axb5 {[%clk 0:00:38.8]} 34. Ke4 {[%clk
0:01:11.2]} 34... Nc6 {[%clk 0:00:37.5]} 35. c3 {[%clk 0:01:04.5]} 35... Na5
{[%clk 0:00:23.6]} 36. Bd1 {[%clk 0:00:50.3]} 36... Kf8 {[%clk 0:00:13.7]} 37.
Kd5 {[%clk 0:00:41.2]} 37... Nb3 {[%clk 0:00:15.1]} 38. Kc6 {[%clk 0:00:42.6]}
38... b4 {[%clk 0:00:16.3]} 39. Kb5 {[%clk 0:00:44]} 39... bxc3 {[%clk
0:00:14.3]} 40. Kxc4 {[%clk 0:00:45.2]} 40... Nd2+ {[%clk 0:00:12.4]} 41. Kxc3
{[%clk 0:00:44.8]} 41... Nf1 {[%clk 0:00:14.3]} 42. Kd3 {[%clk 0:00:42.6]} 42...
Nxh2 {[%clk 0:00:15.6]} 43. Be2 {[%clk 0:00:34.5]} 43... f5 {[%clk 0:00:16]} 44.
e4 {[%clk 0:00:30.8]} 44... Ng4 {[%clk 0:00:13.3]} 45. exf5 {[%clk 0:00:19]}
45... Nf6 {[%clk 0:00:11.6]} 46. g4 {[%clk 0:00:20]} 46... Ke7 {[%clk
0:00:13.3]} 47. Ke3 {[%clk 0:00:20.7]} 47... Nd5+ {[%clk 0:00:14.4]} 48. Kf3
{[%clk 0:00:21.7]} 48... Kf6 {[%clk 0:00:15.8]} 49. Bd3 {[%clk 0:00:21.9]} 49...
Nb4 {[%clk 0:00:16.9]} 50. g5+ {[%clk 0:00:22.8]} 50... Ke7 {[%clk 0:00:18]} 51.
Be4 {[%clk 0:00:24.1]} 51... Na6 {[%clk 0:00:18.2]} 52. f6+ {[%clk 0:00:25.3]}
52... Kf8 {[%clk 0:00:19.2]} 53. Bxh7 {[%clk 0:00:26.5]} 53... Nc5 {[%clk
0:00:21.1]} 54. Bc2 {[%clk 0:00:26.7]} 54... Nd7 {[%clk 0:00:22.4]} 55. Kg4
{[%clk 0:00:26.3]} 55... Nc5 {[%clk 0:00:23.8]} 56. Bf5 {[%clk 0:00:26.6]} 56...
Nb7 {[%clk 0:00:24.9]} 57. Kf3 {[%clk 0:00:27.7]} 57... Nd6 {[%clk 0:00:26.5]}
58. Bd3 {[%clk 0:00:28.7]} 58... Nb7 {[%clk 0:00:27.8]} 59. Kg4 {[%clk
0:00:27.7]} 59... Nc5 {[%clk 0:00:28.4]} 60. Bc2 {[%clk 0:00:28.3]} 60... Nd7
{[%clk 0:00:28.3]} 61. Kh5 {[%clk 0:00:28.9]} 61... Nc5 {[%clk 0:00:28.4]} 62.
Kh6 {[%clk 0:00:27.9]} 62... Nd7 {[%clk 0:00:28.5]} 63. Bb1 {[%clk 0:00:27.4]}
63... Kg8 {[%clk 0:00:26.7]} 64. Ba2 {[%clk 0:00:28.2]} 64... Kf8 {[%clk
0:00:27.6]} 65. Kh7 {[%clk 0:00:27.6]} 65... Nc5 {[%clk 0:00:25.6]} 66. Bc4
{[%clk 0:00:21.9]} 66... Ne4 {[%clk 0:00:26.1]} 67. Kh6 {[%clk 0:00:21.5]} 67...
Nd6 {[%clk 0:00:26.2]} 68. Bd5 {[%clk 0:00:22.8]} 68... Nf5+ {[%clk 0:00:26.9]}
69. Kh7 {[%clk 0:00:24.1]} 69... Ne3 {[%clk 0:00:28.3]} 70. Be4 {[%clk
0:00:25.1]} 70... Ng4 {[%clk 0:00:26.3]} 71. Bf3 {[%clk 0:00:23.4]} 71... Nf2
{[%clk 0:00:23.9]} 72. Kh8 {[%clk 0:00:23.6]} 72... Nh3 {[%clk 0:00:24]} 73. Kh7
{[%clk 0:00:20.1]} 73... Nxf4 {[%clk 0:00:25]} 74. Kh6 {[%clk 0:00:21.5]} 74...
Ne6 {[%clk 0:00:25.8]} 75. Bg4 {[%clk 0:00:22.6]} 75... Nf4 {[%clk 0:00:26.6]}
76. Bf5 {[%clk 0:00:23.4]} 76... Nd5 {[%clk 0:00:27.5]} 77. Kh5 {[%clk
0:00:24.2]} 77... Ne3 {[%clk 0:00:28]} 78. Be4 {[%clk 0:00:24.7]} 78... Nc4
{[%clk 0:00:29.4]} 79. Kg4 {[%clk 0:00:25.5]} 79... Nd6 {[%clk 0:00:30.7]} 80.
Bd3 {[%clk 0:00:26.5]} 80... Nb7 {[%clk 0:00:31.8]} 81. Kf4 {[%clk 0:00:27.6]}
81... Nc5 {[%clk 0:00:33.4]} 82. Bc2 {[%clk 0:00:28.9]} 82... Ne6+ {[%clk
0:00:34.7]} 83. Kg4 {[%clk 0:00:30.2]} 83... Nd4 {[%clk 0:00:36.4]} 84. Bd1
{[%clk 0:00:31.4]} 84... Ne6 {[%clk 0:00:37.7]} 85. Kf5 {[%clk 0:00:32.5]} 85...
Nd4+ {[%clk 0:00:38.7]} 86. Ke5 {[%clk 0:00:33.7]} 86... Ne6 {[%clk 0:00:40.2]}
87. g6 {[%clk 0:00:34.7]} 87... Ng5 {[%clk 0:00:30.8]} 88. g7+ {[%clk
0:00:33.9]} 88... Kg8 {[%clk 0:00:32.4]} 89. Bg4 {[%clk 0:00:32.3]} 89... Nh7
{[%clk 0:00:30.4]} 90. Kf5 {[%clk 0:00:31]} 90... Nf8 {[%clk 0:00:27.3]} 91.
gxf8=Q+ {[%clk 0:00:30.5]} 91... Kxf8 {[%clk 0:00:29.2]} 92. Ke5 {[%clk
0:00:30.9]} 92... Kg8 {[%clk 0:00:31.1]} 93. Bf5 {[%clk 0:00:31.1]} 93... Kf8
{[%clk 0:00:31.7]} 94. Kd6 {[%clk 0:00:32.4]} 94... Ke8 {[%clk 0:00:33.6]} 95.
Be4 {[%clk 0:00:31.5]} 95... Kf8 {[%clk 0:00:32.6]} 96. Kd7 {[%clk 0:00:32.7]}
96... Kg8 {[%clk 0:00:34.1]} 97. Ke7 {[%clk 0:00:33.3]} 97... Kh8 {[%clk
0:00:35.7]} 98. Bd5 {[%clk 0:00:32]} 98... Kg8 {[%clk 0:00:34.7]} 99. Bxf7+
{[%clk 0:00:32.7]} 99... Kh7 {[%clk 0:00:36.6]} 100. Be8 {[%clk 0:00:33.7]}
100... Kg8 {[%clk 0:00:37.4]} 101. f7+ {[%clk 0:00:34.4]} 101... Kh7 {[%clk
0:00:39.1]} 102. Bd7 {[%clk 0:00:33.4]} 1-0

[Event "*** Titled Tuesday Blitz"]
[Site "Chess.com"]
[Date "2019.03.05"]
[Round "5"]
[White "dreamist"]
[Black "Alexander_Donchenko"]
[Result "0-1"]
[WhiteElo "2718"]
[BlackElo "2747"]
[TimeControl "180+2"]
[EndTime "14:16:32 PST"]
[Termination "Alexander_Donchenko won by resignation"]

1. c4 {[%clk 0:03:01.9]} 1... c5 {[%clk 0:02:59.2]} 2. Nc3 {[%clk 0:03:02.1]}
2... Nc6 {[%clk 0:03:00.5]} 3. Nf3 {[%clk 0:03:02.4]} 3... Nf6 {[%clk
0:02:58.9]} 4. d4 {[%clk 0:03:01.4]} 4... cxd4 {[%clk 0:02:59.8]} 5. Nxd4 {[%clk
0:03:02.9]} 5... e6 {[%clk 0:03:01.2]} 6. g3 {[%clk 0:02:59]} 6... Qb6 {[%clk
0:03:01.4]} 7. Nb3 {[%clk 0:02:57.5]} 7... Ne5 {[%clk 0:03:01.4]} 8. e3 {[%clk
0:02:55.3]} 8... Qc6 {[%clk 0:02:58.2]} 9. e4 {[%clk 0:02:51.8]} 9... Nxe4
{[%clk 0:02:41.9]} 10. Nd4 {[%clk 0:02:45.5]} 10... Qb6 {[%clk 0:02:36.2]} 11.
Nxe4 {[%clk 0:02:44]} 11... Qxd4 {[%clk 0:02:37]} 12. Qe2 {[%clk 0:02:35.7]}
12... Bb4+ {[%clk 0:02:28]} 13. Bd2 {[%clk 0:02:36.3]} 13... Qxb2 {[%clk
0:02:18.6]} 14. Rd1 {[%clk 0:02:33.7]} 14... O-O {[%clk 0:02:07.2]} 15. f4
{[%clk 0:02:30.7]} 15... Bxd2+ {[%clk 0:01:58.8]} 16. Rxd2 {[%clk 0:02:29.1]}
16... Qb1+ {[%clk 0:01:59.5]} 17. Kf2 {[%clk 0:02:24.9]} 17... Ng4+ {[%clk
0:01:57.2]} 18. Kg2 {[%clk 0:02:20.1]} 18... d5 {[%clk 0:01:52.7]} 19. Nc3
{[%clk 0:02:15.7]} 19... Qc1 {[%clk 0:01:41.4]} 20. Qd3 {[%clk 0:02:08.2]} 20...
dxc4 {[%clk 0:01:35.2]} 21. Qd4 {[%clk 0:02:07.8]} 21... Bd7 {[%clk 0:01:29.3]}
22. Bxc4 {[%clk 0:01:27.3]} 22... Bc6+ {[%clk 0:01:28.3]} 23. Bd5 {[%clk
0:01:27.8]} 23... Bxd5+ {[%clk 0:01:06.7]} 24. Nxd5 {[%clk 0:01:26.5]} 24... Qc6
{[%clk 0:01:07.1]} 25. Kh3 {[%clk 0:01:23.8]} 25... exd5 {[%clk 0:01:01.8]} 26.
Kxg4 {[%clk 0:01:24.5]} 26... Rad8 {[%clk 0:00:47]} 27. Re1 {[%clk 0:01:16.1]}
27... a6 {[%clk 0:00:45.3]} 28. Kh3 {[%clk 0:01:10.6]} 28... Qc4 {[%clk
0:00:39.3]} 29. Re5 {[%clk 0:01:04.9]} 29... Qc8+ {[%clk 0:00:28.7]} 30. Kg2
{[%clk 0:01:03.5]} 30... Rfe8 {[%clk 0:00:23.4]} 31. Rg5 {[%clk 0:00:53.3]}
31... g6 {[%clk 0:00:22.3]} 32. Rxd5 {[%clk 0:00:52.5]} 32... Rxd5 {[%clk
0:00:22.9]} 33. Qxd5 {[%clk 0:00:53.9]} 33... Qc3 {[%clk 0:00:20.9]} 34. Rf2
{[%clk 0:00:50.6]} 34... Qc6 {[%clk 0:00:08.8]} 35. Qxc6 {[%clk 0:00:46.8]}
35... bxc6 {[%clk 0:00:10.7]} 36. Rc2 {[%clk 0:00:48.3]} 36... Rc8 {[%clk
0:00:11.4]} 37. Rc5 {[%clk 0:00:48.9]} 37... Kf8 {[%clk 0:00:12.7]} 38. Ra5
{[%clk 0:00:49.6]} 38... Ra8 {[%clk 0:00:13.5]} 39. Rc5 {[%clk 0:00:50.4]} 39...
Rc8 {[%clk 0:00:13.4]} 40. Ra5 {[%clk 0:00:51.1]} 40... Ra8 {[%clk 0:00:07.3]}
41. Rc5 {[%clk 0:00:51.6]} 41... Rb8 {[%clk 0:00:08.9]} 42. Rxc6 {[%clk
0:00:43.2]} 42... Rb2+ {[%clk 0:00:09.9]} 43. Kf3 {[%clk 0:00:44.6]} 43... Rxa2
{[%clk 0:00:10.6]} 44. h4 {[%clk 0:00:43.8]} 44... h5 {[%clk 0:00:10.8]} 45. f5
{[%clk 0:00:43.3]} 45... Ra3+ {[%clk 0:00:11]} 46. Kf4 {[%clk 0:00:44.2]} 46...
Ra4+ {[%clk 0:00:12.4]} 47. Ke5 {[%clk 0:00:30]} 47... Ra5+ {[%clk 0:00:13]} 48.
Ke4 {[%clk 0:00:29.6]} 48... gxf5+ {[%clk 0:00:10.7]} 49. Kf4 {[%clk 0:00:30.5]}
49... Kg7 {[%clk 0:00:12.3]} 50. Rb6 {[%clk 0:00:31]} 50... f6 {[%clk
0:00:10.7]} 51. Rb8 {[%clk 0:00:28.7]} 51... Kh7 {[%clk 0:00:08]} 52. Ra8 {[%clk
0:00:26.6]} 52... Kg7 {[%clk 0:00:08.1]} 53. Rb8 {[%clk 0:00:26]} 53... Rb5
{[%clk 0:00:09.1]} 54. Ra8 {[%clk 0:00:24.1]} 54... Ra5 {[%clk 0:00:06.3]} 55.
Rc8 {[%clk 0:00:17.5]} 55... Rb5 {[%clk 0:00:06.3]} 56. Ra8 {[%clk 0:00:18]}
56... a5 {[%clk 0:00:07.5]} 57. Kf3 {[%clk 0:00:17.7]} 57... Kg6 {[%clk
0:00:07.4]} 58. Rg8+ {[%clk 0:00:17.5]} 58... Kf7 {[%clk 0:00:08.8]} 59. Ra8
{[%clk 0:00:19.1]} 59... Ke6 {[%clk 0:00:10.1]} 60. Ra6+ {[%clk 0:00:17.5]}
60... Ke5 {[%clk 0:00:11.3]} 61. Ra8 {[%clk 0:00:18.2]} 61... Rb3+ {[%clk
0:00:12.4]} 62. Kf2 {[%clk 0:00:19.3]} 62... Ra3 {[%clk 0:00:13.6]} 63. Re8+
{[%clk 0:00:18.1]} 63... Kd4 {[%clk 0:00:14.5]} 64. Rd8+ {[%clk 0:00:19.4]}
64... Kc4 {[%clk 0:00:15.3]} 65. Rc8+ {[%clk 0:00:19.1]} 65... Kd4 {[%clk
0:00:15.6]} 66. Rd8+ {[%clk 0:00:20]} 66... Ke5 {[%clk 0:00:16.7]} 67. Re8+
{[%clk 0:00:20.8]} 67... Kd5 {[%clk 0:00:17.5]} 68. Rd8+ {[%clk 0:00:21.9]}
68... Ke6 {[%clk 0:00:18.9]} 69. Re8+ {[%clk 0:00:22.7]} 69... Kf7 {[%clk
0:00:20.3]} 70. Ra8 {[%clk 0:00:22.9]} 70... a4 {[%clk 0:00:21.4]} 71. Ra5
{[%clk 0:00:22.1]} 71... Ke6 {[%clk 0:00:21.4]} 72. Ra6+ {[%clk 0:00:21.6]}
72... Ke5 {[%clk 0:00:22.9]} 73. Ra8 {[%clk 0:00:21.9]} 73... f4 {[%clk
0:00:19.6]} 74. Ra5+ {[%clk 0:00:22]} 74... Ke4 {[%clk 0:00:21.1]} 75. gxf4
{[%clk 0:00:23]} 75... f5 {[%clk 0:00:20.2]} 76. Kg2 {[%clk 0:00:16.3]} 76...
Kxf4 {[%clk 0:00:21.2]} 77. Ra8 {[%clk 0:00:16.9]} 77... Kg4 {[%clk 0:00:19.4]}
78. Rg8+ {[%clk 0:00:17.4]} 78... Kxh4 {[%clk 0:00:20.8]} 79. Kf2 {[%clk
0:00:18.9]} 79... f4 {[%clk 0:00:21.3]} 80. Rg1 {[%clk 0:00:18.1]} 80... Rb3
{[%clk 0:00:22.1]} 81. Rg8 {[%clk 0:00:18.6]} 81... a3 {[%clk 0:00:22.9]} 82.
Ra8 {[%clk 0:00:19.3]} 82... Kg4 {[%clk 0:00:23.3]} 83. Rg8+ {[%clk 0:00:19.3]}
83... Kf5 {[%clk 0:00:24.7]} 84. Rf8+ {[%clk 0:00:20.6]} 84... Ke4 {[%clk
0:00:26.1]} 85. Re8+ {[%clk 0:00:21.8]} 85... Kd4 {[%clk 0:00:27.2]} 86. Ra8
{[%clk 0:00:19.1]} 86... h4 {[%clk 0:00:28.4]} 87. Ra4+ {[%clk 0:00:19.1]} 87...
Ke5 {[%clk 0:00:29.7]} 88. Ra5+ {[%clk 0:00:19.5]} 88... Ke4 {[%clk 0:00:31.2]}
89. Ra4+ {[%clk 0:00:20.2]} 89... Kf5 {[%clk 0:00:32.6]} 90. Ra8 {[%clk
0:00:20.7]} 90... h3 {[%clk 0:00:33.8]} 91. Kg1 {[%clk 0:00:21]} 91... Kg4
{[%clk 0:00:33.2]} 92. Kh2 {[%clk 0:00:21.5]} 92... Rb2+ {[%clk 0:00:33.9]} 93.
Kg1 {[%clk 0:00:21.6]} 93... a2 {[%clk 0:00:35]} 94. Ra3 {[%clk 0:00:20.4]}
94... Kf5 {[%clk 0:00:34]} 95. Ra5+ {[%clk 0:00:19.5]} 95... Ke4 {[%clk
0:00:35.3]} 96. Ra4+ {[%clk 0:00:20.2]} 96... Kd5 {[%clk 0:00:36.7]} 97. Ra5+
{[%clk 0:00:20.7]} 97... Kc4 {[%clk 0:00:37.9]} 98. Ra4+ {[%clk 0:00:22]} 98...
Kb5 {[%clk 0:00:39.3]} 0-1

[Event "*** Titled Tuesday Blitz"]
[Site "Chess.com"]
[Date "2019.03.05"]
[Round "5"]
[White "zeitnot2006"]
[Black "Amirreza_p"]
[Result "1/2-1/2"]
[WhiteElo "2145"]
[BlackElo "2800"]
[TimeControl "180+2"]
[EndTime "14:16:44 PST"]
[Termination "Game drawn by repetition"]

1. d4 {[%clk 0:03:01.9]} 1... e6 {[%clk 0:03:01.1]} 2. c4 {[%clk 0:03:03.1]}
2... Nf6 {[%clk 0:03:02.5]} 3. g3 {[%clk 0:03:03.9]} 3... c5 {[%clk 0:03:01.6]}
4. d5 {[%clk 0:03:04.6]} 4... exd5 {[%clk 0:03:02.2]} 5. cxd5 {[%clk 0:03:06.2]}
5... d6 {[%clk 0:03:03.4]} 6. Nc3 {[%clk 0:03:07]} 6... g6 {[%clk 0:03:03.6]} 7.
Nf3 {[%clk 0:03:07.4]} 7... Bg7 {[%clk 0:03:04.9]} 8. Bg2 {[%clk 0:03:09.1]}
8... O-O {[%clk 0:03:06.4]} 9. O-O {[%clk 0:03:10.8]} 9... Re8 {[%clk
0:03:06.1]} 10. Bf4 {[%clk 0:03:11.4]} 10... a6 {[%clk 0:03:02.7]} 11. a4 {[%clk
0:03:12]} 11... h6 {[%clk 0:03:02.7]} 12. Qc1 {[%clk 0:03:05.5]} 12... g5 {[%clk
0:03:03.2]} 13. Bd2 {[%clk 0:03:05.3]} 13... Nbd7 {[%clk 0:03:04.5]} 14. h4
{[%clk 0:03:01.4]} 14... g4 {[%clk 0:03:04.6]} 15. Ne1 {[%clk 0:03:01.8]} 15...
h5 {[%clk 0:02:59]} 16. Nd3 {[%clk 0:02:54.1]} 16... Ne5 {[%clk 0:02:52.8]} 17.
Nxe5 {[%clk 0:02:44.8]} 17... Rxe5 {[%clk 0:02:54.7]} 18. e4 {[%clk 0:02:44.1]}
18... Re8 {[%clk 0:02:50.4]} 19. Bg5 {[%clk 0:02:31.6]} 19... Qb6 {[%clk
0:02:49.2]} 20. Bh6 {[%clk 0:02:07.9]} 20... Nh7 {[%clk 0:02:39.4]} 21. Bxg7
{[%clk 0:02:01]} 21... Kxg7 {[%clk 0:02:41.3]} 22. f4 {[%clk 0:01:55.3]} 22...
gxf3 {[%clk 0:02:41.3]} 23. Bxf3 {[%clk 0:01:47.4]} 23... Re5 {[%clk 0:02:41.2]}
24. Kh2 {[%clk 0:01:35.1]} 24... Bd7 {[%clk 0:02:39.9]} 25. Rb1 {[%clk
0:01:29.9]} 25... Rg8 {[%clk 0:02:38.7]} 26. Qf4 {[%clk 0:01:28.8]} 26... f6
{[%clk 0:02:39]} 27. b3 {[%clk 0:01:24.6]} 27... Qb4 {[%clk 0:02:31.4]} 28. Ne2
{[%clk 0:01:18.3]} 28... Kh8 {[%clk 0:02:27.4]} 29. Qh6 {[%clk 0:01:03.7]} 29...
Be8 {[%clk 0:02:17.8]} 30. Rfd1 {[%clk 0:00:47]} 30... Rg6 {[%clk 0:02:08.4]}
31. Qf4 {[%clk 0:00:47.9]} 31... Kg7 {[%clk 0:02:07.1]} 32. Nc1 {[%clk
0:00:47.1]} 32... Qb6 {[%clk 0:01:19.6]} 33. Nd3 {[%clk 0:00:46.8]} 33... Re7
{[%clk 0:01:21.1]} 34. Bxh5 {[%clk 0:00:45.6]} 34... Rh6 {[%clk 0:01:22.7]} 35.
Bxe8 {[%clk 0:00:43.5]} 35... Rxe8 {[%clk 0:01:24.6]} 36. Nb2 {[%clk 0:00:37.2]}
36... Rd8 {[%clk 0:01:10.1]} 37. Nc4 {[%clk 0:00:35.1]} 37... Qc7 {[%clk
0:01:11.6]} 38. a5 {[%clk 0:00:32.9]} 38... Rg6 {[%clk 0:01:11.1]} 39. Rf1
{[%clk 0:00:29]} 39... Qe7 {[%clk 0:01:09.6]} 40. Rf3 {[%clk 0:00:28.1]} 40...
Nf8 {[%clk 0:00:59.4]} 41. Rbf1 {[%clk 0:00:24.4]} 41... Nh7 {[%clk 0:00:56.8]}
42. g4 {[%clk 0:00:17.6]} 42... Kh8 {[%clk 0:00:54.7]} 43. Rh3 {[%clk
0:00:17.3]} 43... Qd7 {[%clk 0:00:47.3]} 44. Rg3 {[%clk 0:00:15.5]} 44... Qe7
{[%clk 0:00:39.4]} 45. Rff3 {[%clk 0:00:13.1]} 45... Rg7 {[%clk 0:00:32.4]} 46.
Kg2 {[%clk 0:00:12.4]} 46... Qd7 {[%clk 0:00:26.1]} 47. Kh2 {[%clk 0:00:10.3]}
47... Qe7 {[%clk 0:00:25.8]} 48. Kg2 {[%clk 0:00:11]} 48... Kg8 {[%clk
0:00:25.2]} 49. Kh2 {[%clk 0:00:12.4]} 49... Qf8 {[%clk 0:00:22]} 50. Kg2 {[%clk
0:00:13.6]} 50... Qe7 {[%clk 0:00:23]} 51. Kh2 {[%clk 0:00:15]} 51... Kf8 {[%clk
0:00:23.1]} 52. Qe3 {[%clk 0:00:12.6]} 52... Ke8 {[%clk 0:00:23.2]} 53. Qf4
{[%clk 0:00:11.3]} 53... Kd7 {[%clk 0:00:23.6]} 54. Qf5+ {[%clk 0:00:12.2]}
54... Kc7 {[%clk 0:00:24.4]} 55. Kg2 {[%clk 0:00:12.2]} 55... Rdg8 {[%clk
0:00:22.1]} 56. Kf2 {[%clk 0:00:13.2]} 56... Rg6 {[%clk 0:00:22.3]} 57. Ke2
{[%clk 0:00:12.8]} 57... Nf8 {[%clk 0:00:23.1]} 58. Kd3 {[%clk 0:00:13.3]} 58...
Nd7 {[%clk 0:00:24.4]} 59. Qf4 {[%clk 0:00:12.7]} 59... R6g7 {[%clk 0:00:20.6]}
60. Kc2 {[%clk 0:00:12.9]} 60... Ne5 {[%clk 0:00:21.4]} 61. Nxe5 {[%clk
0:00:13.5]} 61... fxe5 {[%clk 0:00:23.3]} 62. Qf6 {[%clk 0:00:13.5]} 62... Qxf6
{[%clk 0:00:23.9]} 63. Rxf6 {[%clk 0:00:14.5]} 63... Rxg4 {[%clk 0:00:25.7]} 64.
Rf7+ {[%clk 0:00:14.8]} 64... Kc8 {[%clk 0:00:26.2]} 65. Rxg4 {[%clk 0:00:09.1]}
65... Rxg4 {[%clk 0:00:26.9]} 66. h5 {[%clk 0:00:08.9]} 66... Rh4 {[%clk
0:00:26.2]} 67. Rh7 {[%clk 0:00:08.9]} 67... Rxe4 {[%clk 0:00:27.2]} 68. h6
{[%clk 0:00:10.5]} 68... Rh4 {[%clk 0:00:28.7]} 69. Rh8+ {[%clk 0:00:10.8]}
69... Kc7 {[%clk 0:00:29.7]} 70. h7 {[%clk 0:00:12]} 70... Rh3 {[%clk
0:00:30.8]} 71. Kb2 {[%clk 0:00:12.8]} 71... Rh2+ {[%clk 0:00:31.3]} 72. Kc3
{[%clk 0:00:13.6]} 72... e4 {[%clk 0:00:31.8]} 73. Re8 {[%clk 0:00:09]} 73...
Rxh7 {[%clk 0:00:29.7]} 74. Rxe4 {[%clk 0:00:10.5]} 74... Rf7 {[%clk 0:00:28.5]}
75. Rg4 {[%clk 0:00:08.9]} 75... b5 {[%clk 0:00:27.1]} 76. axb6+ {[%clk
0:00:08.9]} 76... Kxb6 {[%clk 0:00:29]} 77. Rg6 {[%clk 0:00:10]} 77... Rf3+
{[%clk 0:00:26.7]} 78. Kc4 {[%clk 0:00:10.1]} 78... Rf4+ {[%clk 0:00:27.8]} 79.
Kc3 {[%clk 0:00:11.5]} 79... Kc7 {[%clk 0:00:27.8]} 80. Rg7+ {[%clk 0:00:12.8]}
80... Kc8 {[%clk 0:00:28.5]} 81. Rg8+ {[%clk 0:00:13.7]} 81... Kb7 {[%clk
0:00:29.6]} 82. Rg7+ {[%clk 0:00:14.9]} 82... Kb6 {[%clk 0:00:30.1]} 83. Rg6
{[%clk 0:00:14.7]} 83... Kb5 {[%clk 0:00:31.2]} 84. Rxd6 {[%clk 0:00:15.6]}
84... Rf3+ {[%clk 0:00:32.8]} 85. Kc2 {[%clk 0:00:15.6]} 85... a5 {[%clk
0:00:34.1]} 86. Rd8 {[%clk 0:00:15.8]} 86... Kb4 {[%clk 0:00:35.1]} 87. Rb8+
{[%clk 0:00:16.5]} 87... Ka3 {[%clk 0:00:35.7]} 88. Rb5 {[%clk 0:00:17.3]} 88...
Rf2+ {[%clk 0:00:34.3]} 89. Kc3 {[%clk 0:00:17.9]} 89... a4 {[%clk 0:00:27.9]}
90. bxa4 {[%clk 0:00:14.7]} 90... Kxa4 {[%clk 0:00:29.8]} 91. Rxc5 {[%clk
0:00:15.3]} 91... Rf1 {[%clk 0:00:31.4]} 92. Kd4 {[%clk 0:00:14.3]} 92... Kb4
{[%clk 0:00:30.6]} 93. Rc6 {[%clk 0:00:15.2]} 93... Kb5 {[%clk 0:00:30.9]} 94.
Ke5 {[%clk 0:00:14.5]} 94... Rh1 {[%clk 0:00:30.7]} 95. Kd6 {[%clk 0:00:15.4]}
95... Rh6+ {[%clk 0:00:31.3]} 96. Kc7 {[%clk 0:00:14.5]} 96... Rh7+ {[%clk
0:00:32.4]} 97. Kd6 {[%clk 0:00:15.8]} 97... Rh6+ {[%clk 0:00:33.5]} 98. Kc7
{[%clk 0:00:15.1]} 98... Rh7+ {[%clk 0:00:34.9]} 99. Kd6 {[%clk 0:00:10.5]}
99... Rh6+ {[%clk 0:00:36]} 100. Kd7 {[%clk 0:00:10]} 100... Rh7+ {[%clk
0:00:37.2]} 101. Kd6 {[%clk 0:00:10.3]} 101... Rh6+ {[%clk 0:00:38.4]} 1/2-1/2

[Event "*** Titled Tuesday Blitz"]
[Site "Chess.com"]
[Date "2019.03.05"]
[Round "6"]
[White "GataKamsky1974"]
[Black "Alexander_Donchenko"]
[Result "1-0"]
[WhiteElo "2843"]
[BlackElo "2741"]
[TimeControl "180+2"]
[EndTime "14:20:36 PST"]
[Termination "GataKamsky1974 won by resignation"]

1. e4 {[%clk 0:03:01.9]} 1... c6 {[%clk 0:03:00]} 2. d4 {[%clk 0:03:00.1]} 2...
d5 {[%clk 0:03:01.6]} 3. exd5 {[%clk 0:03:01.8]} 3... cxd5 {[%clk 0:03:03.5]} 4.
c3 {[%clk 0:03:03.3]} 4... Nc6 {[%clk 0:03:04]} 5. Bd3 {[%clk 0:03:04.4]} 5...
Qc7 {[%clk 0:03:04]} 6. Ne2 {[%clk 0:03:05.5]} 6... Bg4 {[%clk 0:03:04.7]} 7.
O-O {[%clk 0:03:06.3]} 7... e6 {[%clk 0:03:01.6]} 8. Qe1 {[%clk 0:03:07.7]} 8...
Bh5 {[%clk 0:03:02.9]} 9. Nf4 {[%clk 0:03:07.2]} 9... Bg6 {[%clk 0:02:59.8]} 10.
Nxd5 {[%clk 0:03:06.9]} 10... Qd8 {[%clk 0:03:00.3]} 11. Nf4 {[%clk 0:03:07.8]}
11... Nf6 {[%clk 0:02:59.5]} 12. Nd2 {[%clk 0:03:04.3]} 12... Bd6 {[%clk
0:02:59.5]} 13. Nxg6 {[%clk 0:03:02.3]} 13... hxg6 {[%clk 0:03:00.1]} 14. Nf3
{[%clk 0:03:00.8]} 14... Qc7 {[%clk 0:02:48]} 15. g3 {[%clk 0:02:59.2]} 15...
O-O-O {[%clk 0:02:43.9]} 16. b4 {[%clk 0:02:56.4]} 16... Rh3 {[%clk 0:02:41.9]}
17. Ng5 {[%clk 0:02:53.9]} 17... Rh5 {[%clk 0:02:40.7]} 18. b5 {[%clk
0:02:51.9]} 18... Ne7 {[%clk 0:02:38.4]} 19. Nxf7 {[%clk 0:02:46.7]} 19... Rd7
{[%clk 0:02:04.5]} 20. Qxe6 {[%clk 0:02:44.6]} 20... Kb8 {[%clk 0:01:50.8]} 21.
Nxd6 {[%clk 0:02:43.9]} 21... Rxd6 {[%clk 0:01:51.6]} 22. Qxd6 {[%clk
0:02:43.8]} 1-0